bitfinex/quotes_ETHUSD_20250725
["timestamp","ask_amount","ask_price","bid_price","bid_amount"]
[1753429357059,2.76397767,3618.0,3617.6,0.1384]
[1753429357317,0.002,3618.2,3617.7,0.4307]
[1753429357610,0.002,3618.2,3618.1,0.1384]
[1753429358307,2.7658052,3618.2,3618.1,0.1384]
[1753429358499,2.7658052,3618.2,3615.4,7.23021095]
[1753429358500,2.7640779,3617.9,3617.1,2.76458789]
[1753429358683,2.76403438,3617.9,3617.7,0.1384]
[1753429358884,2.76403555,3617.9,3617.7,0.1384]
[1753429359113,2.76389792,3618.1,3617.7,0.1384]
[1753429359623,2.76405921,3617.9,3617.7,0.1384]
[1753429359771,0.002,3618.2,3617.7,0.1384]
[1753429359983,2.76414657,3617.8,3617.7,0.1384]
[1753429360669,0.9236,3617.8,3615.4,0.21021095]
[1753429360869,0.1384,3617.4,3616.1,2.80533772]
[1753429361109,0.03455616,3617.3,3616.7,0.13940001]
[1753429361275,2.76477969,3617.0,3616.9,0.1384]
[1753429361972,0.6105,3617.5,3616.9,0.1384]
[1753429362174,2.76472214,3617.0,3616.9,0.1384]
[1753429362382,2.76466125,3617.1,3616.7,0.00100001]
[1753429362614,2.76466125,3617.1,3616.9,0.1384]
[1753429362777,2.76472214,3617.0,3616.9,0.1384]
[1753429363282,2.7648572,3616.9,3616.8,0.1384]
[1753429363622,3.23652337,3617.4,3616.8,0.1384]
[1753429363913,0.1384,3617.6,3616.8,0.1384]
[1753429364107,2.7642893,3617.6,3617.2,0.1384]
[1753429364408,2.76434001,3617.5,3617.2,0.1384]
[1753429364656,0.1384,3617.7,3617.2,0.1384]
[1753429364932,2.76436962,3617.5,3617.2,0.1384]
[1753429365132,2.76416135,3617.8,3617.3,0.9303]
[1753429365331,2.76416135,3617.8,3617.7,0.1384]
[1753429365535,0.64704756,3618.2,3617.7,0.1384]
[1753429365747,0.002,3618.2,3617.8,0.4307]
[1753429365910,0.002,3618.2,3617.5,0.4996]
[1753429366119,2.7639543,3618.1,3617.9,0.1384]
[1753429366805,0.002,3618.2,3617.9,0.1384]
[1753429367021,2.76395798,3618.0,3617.9,0.1384]
[1753429367627,0.002,3618.2,3617.9,0.1384]
[1753429367830,2.7638976,3618.1,3617.9,0.1384]
[1753429368297,2.76581663,3618.2,3617.9,0.1384]
[1753429368528,2.76388839,3618.1,3617.9,0.1384]
[1753429368733,0.002,3618.2,3617.9,0.1384]
[1753429368909,2.76388804,3618.1,3617.9,0.1384]
[1753429369423,2.76390554,3618.1,3617.9,0.1384]
[1753429370233,2.76583343,3618.2,3617.9,0.1384]
[1753429370400,0.002,3618.2,3617.9,0.1384]
[1753429370602,2.76582624,3618.2,3617.9,0.1384]
[1753429370935,2.76388861,3618.1,3617.9,0.1384]
[1753429371135,2.76581738,3618.2,3617.9,0.1384]
[1753429371302,0.002,3618.2,3618.0,0.9456]
[1753429371635,0.002,3618.2,3618.1,1.084]
[1753429371839,2.7658052,3618.2,3618.1,0.1384]
[1753429372348,2.76389168,3618.1,3618.0,0.1384]
[1753429373439,0.002,3618.2,3618.0,0.1384]
[1753429373602,2.76581511,3618.2,3618.0,0.1384]
[1753429373806,2.76388159,3618.1,3618.0,0.1384]
[1753429374005,0.002,3618.2,3618.1,0.4726]
[1753429374500,0.002,3618.2,3618.1,0.9456]
[1753429375205,0.002,3618.2,3618.0,0.1384]
[1753429375408,0.002,3618.2,3618.1,3.70948159]
[1753429376905,0.002,3618.2,3618.1,0.9456]
[1753429377101,0.002,3618.2,3618.1,0.4726]
[1753429377942,0.002,3618.2,3618.0,0.1384]
[1753429378448,0.002,3618.2,3618.0,0.611]
[1753429378651,0.002,3618.2,3618.0,3.3749335]
[1753429378945,0.002,3618.2,3618.1,0.9456]
[1753429379445,0.002,3618.2,3618.1,3.70948159]
[1753429380411,0.002,3618.2,3618.0,0.1384]
[1753429381110,0.4722,3618.2,3618.0,0.1384]
[1753429381310,3.23408159,3618.1,3618.0,0.1384]
[1753429382634,2.76388159,3618.1,3618.0,0.1384]
[1753429383014,3.23408159,3618.1,3618.0,0.1384]
[1753429383208,0.002,3618.2,3618.0,0.1384]
[1753429383408,4.384,3618.1,3618.0,0.1384]
[1753429384014,0.002,3618.2,3618.0,0.1384]
[1753429384737,5.3161,3618.1,3617.0,0.4726]
[1753429384910,0.7817,3618.0,3617.0,0.4726]
[1753429385148,2.76424109,3617.7,3617.0,3.23730451]
[1753429385442,2.76414,3617.8,3617.1,2.76463378]
[1753429385642,2.76406002,3617.9,3617.2,2.76454929]
[1753429385945,2.7638922,3618.1,3617.2,3.23716314]
[1753429386147,0.002,3618.2,3617.4,2.76441643]
[1753429386446,7.14883075,3618.2,3617.5,2.76429121]
[1753429386819,7.14883075,3618.2,3617.5,3.23689121]
[1753429387016,7.14883075,3618.2,3617.6,2.7642381]
[1753429387017,4.385,3618.2,3617.6,2.7642381]
[1753429387219,4.385,3618.2,3617.5,0.9456]
[1753429387220,7.14880631,3618.2,3617.5,0.9456]
[1753429387416,4.385,3618.2,3617.5,0.9456]
[1753429387647,7.14885416,3618.2,3617.5,3.7099134]
[1753429387815,2.76388172,3618.1,3617.5,3.7099134]
[1753429388021,7.1488333,3618.2,3617.5,3.7099134]
[1753429388219,2.76389209,3618.1,3617.5,3.7099134]
[1753429388743,2.76389209,3618.1,3617.5,0.9456]
[1753429388942,2.76396403,3618.0,3617.5,0.9456]
[1753429389153,2.76403,3618.0,3617.1,4.8556]
[1753429389359,2.76403,3618.0,3617.3,2.7644864]
[1753429389855,0.4702,3618.1,3617.1,4.8556]
[1753429390045,2.76406761,3617.9,3617.2,2.76452219]
[1753429391635,2.764113,3617.8,3617.2,2.76452219]
[1753429391830,2.76396114,3618.0,3617.1,8.09321706]
[1753429392039,2.76424629,3617.7,3617.1,4.383]
[1753429392437,2.76424828,3617.7,3617.1,4.383]
[1753429392963,2.76414581,3617.8,3617.2,2.76456287]
[1753429393534,2.76412237,3617.8,3617.2,2.76456287]
[1753429393731,2.76412237,3617.8,3617.1,2.76461627]
[1753429393936,2.76412237,3617.8,3617.2,2.76456347]
[1753429394129,2.76396658,3618.0,3617.1,2.76463471]
[1753429394338,1.2773,3618.1,3617.1,2.76459715]
[1753429394565,1.2773,3618.1,3617.0,1.14828364]
[1753429394566,2.7641713,3617.8,3617.2,2.76455751]
[1753429394971,2.76413123,3617.8,3617.1,2.7646298]
[1753429395260,4.372,3618.0,3617.7,0.1384]
[1753429395433,2.76411078,3617.8,3617.7,0.1384]
[1753429395621,0.03455138,3617.8,3616.8,2.7648243]
[1753429395827,0.9351,3617.7,3617.1,0.001]
[1753429396024,3.55546928,3617.2,3617.1,0.1394]
[1753429396223,8.85956928,3617.2,3617.1,0.1394]
[1753429399060,4.8392,3617.2,3617.1,0.1394]
[1753429399364,7.60376928,3617.2,3617.1,0.1394]
[1753429399531,7.60076928,3617.2,3617.1,0.1394]
[1753429399860,3.23476928,3617.2,3617.1,0.1394]
[1753429400058,8.07266928,3617.2,3617.1,0.1394]
[1753429400361,8.84356928,3617.2,3617.1,0.001]
[1753429400565,8.98196928,3617.2,3617.1,0.001]
[1753429404757,4.61896928,3617.2,3617.1,0.001]
[1753429404962,8.98096928,3617.2,3617.1,0.001]
[1753429405153,15.22541688,3617.2,3617.1,0.001]
[1753429405944,15.22441688,3617.2,3617.1,0.001]
[1753429407343,15.22641688,3617.2,3617.1,0.001]
[1753429407770,10.86341688,3617.2,3617.1,0.001]
[1753429407965,15.22541688,3617.2,3617.1,0.001]
[1753429409173,2.76487502,3616.8,3616.7,0.00100001]
[1753429409485,14.25892262,3616.8,3616.7,0.00100001]
[1753429409699,15.21112262,3616.8,3616.7,0.00100001]
[1753429410066,15.21012262,3616.8,3616.7,0.00100001]
[1753429412690,4.60667502,3616.8,3616.7,0.00100001]
[1753429412853,8.48777502,3616.8,3616.7,0.00100001]
[1753429413057,8.96167502,3616.8,3616.7,0.00100001]
[1753429413982,8.48977502,3616.8,3616.7,0.00100001]
[1753429414164,8.96367502,3616.8,3616.7,0.00100001]
[1753429416558,2.76487502,3616.8,3616.7,0.00100001]
[1753429416828,0.8212,3617.6,3616.7,0.90310001]
[1753429417107,4.356,3617.6,3616.8,0.9021]
[1753429417311,4.356,3617.6,3616.7,0.13940001]
[1753429417312,4.356,3617.6,3617.2,2.7645247]
[1753429417603,7.1202636,3617.6,3617.5,0.1384]
[1753429417765,7.5985636,3617.6,3617.3,0.1384]
[1753429418164,2.7645625,3617.3,3616.7,0.00100001]
[1753429418377,2.7645625,3617.3,3617.2,0.1384]
[1753429418576,7.1225625,3617.3,3617.2,0.1384]
[1753429418863,2.7645625,3617.3,3617.2,0.1384]
[1753429419065,4.357,3617.4,3617.2,1.0405]
[1753429419285,4.357,3617.4,3617.2,0.5972]
[1753429419491,4.357,3617.4,3617.3,0.9021]
[1753429419688,4.357,3617.5,3617.3,0.9021]
[1753429420012,4.356,3617.6,3617.4,0.9021]
[1753429420223,4.357,3617.7,3617.5,0.9021]
[1753429420568,4.357,3617.7,3617.6,0.1384]
[1753429421005,4.357,3617.7,3617.6,1.0405]
[1753429421500,4.354,3617.9,3617.6,1.0405]
[1753429421819,4.354,3618.0,3617.7,0.9021]
[1753429422037,4.354,3618.0,3617.8,0.1384]
[1753429422366,0.002,3618.2,3617.9,0.9021]
[1753429422611,4.354,3618.1,3617.9,0.9021]
[1753429422813,0.002,3618.2,3618.0,0.1384]
[1753429423016,4.353,3618.1,3618.0,1.0405]
[1753429423180,0.002,3618.2,3618.0,1.0405]
[1753429423397,0.002,3618.2,3618.1,3.66598159]
[1753429424111,0.002,3618.2,3618.1,0.9021]
[1753429424483,0.002,3618.2,3618.1,3.66598159]
[1753429425410,0.002,3618.2,3618.1,0.9021]
[1753429425615,0.002,3618.2,3618.1,0.4433]
[1753429425816,0.002,3618.2,3618.0,0.1384]
[1753429426113,2.76388159,3618.1,3618.0,0.1384]
[1753429426415,2.76388159,3618.1,3617.4,0.4588]
[1753429426416,4.8293,3618.1,3617.4,0.4588]
[1753429426566,4.8293,3618.1,3617.9,0.1384]
[1753429426567,7.11489234,3618.1,3617.9,0.1384]
[1753429426767,2.76395798,3618.0,3617.9,0.1384]
[1753429427268,2.76417992,3617.8,3617.1,3.70983671]
[1753429427474,2.76403438,3617.9,3617.1,0.9452]
[1753429427669,0.50924947,3618.0,3617.7,0.1384]
[1753429428013,2.76411078,3617.8,3617.7,0.1384]
[1753429428369,7.11311078,3617.8,3617.7,0.1384]
[1753429429107,8.86031078,3617.8,3617.7,0.1384]
[1753429429308,2.76442332,3617.4,3616.7,0.48640001]
[1753429429633,7.11242332,3617.4,3616.7,0.48640001]
[1753429429925,2.76441643,3617.4,3617.3,0.1384]
[1753429430236,2.90273567,3617.6,3617.0,0.1384]
[1753429430370,4.355,3617.6,3617.3,0.1384]
[1753429430704,7.11927372,3617.6,3617.5,0.1384]
[1753429430927,2.76458755,3617.2,3616.7,0.00100001]
[1753429431068,2.76450472,3617.3,3616.7,0.94620001]
[1753429431274,2.76449816,3617.3,3617.1,0.1384]
[1753429431606,2.76443477,3617.4,3617.1,0.1384]
[1753429431771,2.76443477,3617.4,3616.7,0.00100001]
[1753429431772,2.76487502,3616.8,3616.7,0.00100001]
[1753429431968,2.90304955,3617.1,3616.7,0.00100001]
[1753429432176,4.364,3617.0,3616.7,0.00100001]
[1753429432377,2.76487502,3616.8,3616.7,0.00100001]
[1753429432822,2.79943595,3616.8,3616.7,0.00100001]
[1753429433027,3.23957502,3616.8,3616.7,0.00100001]
[1753429433381,2.76487502,3616.8,3616.7,0.00100001]
[1753429433617,7.13087502,3616.8,3616.7,0.00100001]
[1753429434284,4.366,3616.8,3616.7,0.00100001]
[1753429434484,3.31471578,3617.1,3616.7,0.00100001]
[1753429434730,0.55,3616.9,3616.7,0.00100001]
[1753429435115,6.31482286,3616.9,3616.8,0.1384]
[1753429435427,3.55,3616.9,3616.8,0.1384]
[1753429435579,2.7645696,3617.2,3616.8,0.5982]
[1753429435781,4.365,3617.3,3616.9,0.9452]
[1753429435991,4.365,3617.3,3617.1,0.1384]
[1753429436198,0.55,3617.5,3617.1,0.1384]
[1753429436408,0.55,3617.3,3617.1,0.9452]
[1753429436776,3.31450958,3617.3,3617.2,0.1384]
[1753429437978,4.364,3617.3,3617.2,0.1384]
[1753429438212,7.12849285,3617.3,3617.2,0.1384]
[1753429438377,4.913,3617.3,3617.2,0.1384]
[1753429439925,7.67749285,3617.3,3617.2,0.1384]
[1753429440495,10.67749285,3617.3,3617.2,0.1384]
[1753429440706,3.55,3617.3,3617.2,0.1384]
[1753429440992,10.67849285,3617.3,3617.2,0.1384]
[1753429441391,0.002,3618.2,3617.2,0.5982]
[1753429441603,0.002,3618.2,3617.3,0.4598]
[1753429441824,2.76581951,3618.2,3617.4,2.76441284]
[1753429442011,2.76581951,3618.2,3617.5,0.9452]
[1753429442331,5.7658052,3618.2,3618.1,0.1384]
[1753429442494,3.002,3618.2,3618.1,0.1384]
[1753429443141,2.7658052,3618.2,3618.1,0.1384]
[1753429443454,0.002,3618.2,3618.1,1.0836]
[1753429444111,0.002,3618.2,3618.1,0.1384]
[1753429444517,0.002,3618.2,3618.1,1.0836]
[1753429445132,0.002,3618.2,3618.1,0.1384]
[1753429445436,3.3158052,3618.2,3618.1,0.1384]
[1753429445612,0.552,3618.2,3618.1,0.1384]
[1753429447117,0.552,3618.2,3618.1,1.0836]
[1753429447937,0.552,3618.2,3618.1,0.1384]
[1753429448114,0.552,3618.2,3618.1,1.0836]
[1753429448546,0.552,3618.2,3618.1,3.84748159]
[1753429448547,0.002,3618.2,3618.1,3.84748159]
[1753429450514,0.002,3618.2,3618.1,3.36208159]
[1753429450714,0.002,3618.2,3618.1,3.84748159]
[1753429453045,0.002,3618.2,3618.1,1.0836]
[1753429453241,0.002,3618.2,3618.1,0.1384]
[1753429453450,0.002,3618.2,3618.1,2.90228159]
[1753429453647,0.002,3618.2,3618.1,3.36208159]
[1753429454229,0.002,3618.2,3618.1,0.5982]
[1753429454436,0.002,3618.2,3618.1,3.36208159]
[1753429454836,0.002,3618.2,3618.1,0.1384]
[1753429455935,0.002,3618.2,3618.1,3.84748159]
[1753429456346,0.002,3618.2,3618.1,3.36208159]
[1753429456864,0.002,3618.2,3618.1,3.84258159]
[1753429459667,0.002,3618.2,3618.1,0.1384]
[1753429459960,0.55,3618.1,3617.7,4.3]
[1753429460166,0.55,3617.9,3617.7,8.647]
[1753429460372,0.55,3618.1,3618.0,0.1384]
[1753429460663,0.55,3618.1,3617.8,0.1384]
[1753429460980,0.002,3618.2,3618.0,0.1384]
[1753429461368,0.55,3618.1,3618.0,0.1384]
[1753429461672,4.24098159,3618.1,3618.0,0.1384]
[1753429462439,0.55,3618.1,3618.0,0.1384]
[1753429462638,0.002,3618.2,3618.0,0.1384]
[1753429463595,0.002,3618.2,3618.1,2.76388159]
[1753429463739,0.002,3618.2,3618.1,3.71208159]
[1753429464641,0.002,3618.2,3618.1,2.76388159]
[1753429465080,0.002,3618.2,3618.1,8.05808159]
[1753429465950,0.002,3618.2,3618.0,4.4844]
[1753429466769,0.002,3618.2,3618.0,0.1384]
[1753429467166,0.002,3618.2,3618.0,0.6061]
[1753429467476,0.002,3618.2,3618.1,3.71208159]
[1753429467646,0.002,3618.2,3618.0,0.1384]
[1753429468259,0.002,3618.2,3618.0,0.6061]
[1753429468455,0.002,3618.2,3618.1,0.4677]
[1753429469578,0.002,3618.2,3618.1,5.2932]
[1753429471147,0.002,3618.2,3618.0,0.1384]
[1753429471501,0.55,3618.0,3617.1,0.001]
[1753429471786,0.55,3617.6,3617.2,0.9482]
[1753429471997,3.31426956,3617.6,3617.2,0.4677]
[1753429472159,3.24367507,3617.8,3617.1,0.20986841]
[1753429472519,0.55,3617.5,3617.2,4.345]
[1753429473984,3.21164181,3617.9,3617.3,3.71263177]
[1753429473985,0.55,3617.9,3617.3,3.71263177]
[1753429474278,0.55,3618.0,3617.4,3.71258665]
[1753429474479,0.55,3618.0,3617.5,4.345]
[1753429474702,0.55,3617.9,3617.6,4.345]
[1753429474906,0.55,3617.9,3617.4,0.9482]
[1753429474907,3.31406234,3617.9,3617.4,0.4805]
[1753429475050,0.55,3617.4,3617.3,4.345]
[1753429475354,0.55,3617.4,3617.2,4.345]
[1753429475748,0.55,3617.5,3617.2,4.345]
[1753429476197,3.31421131,3617.7,3617.1,0.001]
[1753429476401,0.55,3617.7,3617.2,5.2932]
[1753429476568,0.55,3617.5,3617.2,5.2932]
[1753429476952,0.55,3617.7,3617.2,5.2932]
[1753429477192,0.55,3617.5,3617.2,4.345]
[1753429477747,0.4795,3617.7,3617.1,0.001]
[1753429477952,3.3145547,3617.3,3617.1,4.346]
[1753429478385,4.24166928,3617.2,3617.1,0.001]
[1753429479189,0.55,3617.2,3617.1,0.001]
[1753429480323,0.55,3617.2,3617.1,3.71384571]
[1753429481098,4.345,3618.1,3617.4,2.76440286]
[1753429481294,0.55,3617.9,3617.3,0.9482]
[1753429481704,3.31404677,3617.9,3617.8,0.1384]
[1753429482009,3.79354677,3617.9,3617.8,0.1384]
[1753429482414,1.0295,3617.9,3617.8,0.1384]
[1753429482585,0.55,3617.9,3617.8,0.1384]
[1753429482920,1.0295,3617.9,3617.8,0.1384]
[1753429483118,3.79353438,3617.9,3617.8,0.1384]
[1753429483280,1.0295,3617.9,3617.8,0.1384]
[1753429484215,0.55,3617.9,3617.8,0.1384]
[1753429484984,1.0295,3617.9,3617.8,0.1384]
[1753429485722,3.79353438,3617.9,3617.8,0.1384]
[1753429485896,4.24113438,3617.9,3617.8,0.1384]
[1753429486102,0.55,3617.3,3617.1,4.301]
[1753429486303,0.55,3617.3,3617.2,0.1384]
[1753429486503,3.31449285,3617.3,3617.2,0.1384]
[1753429486719,3.76209285,3617.3,3617.2,0.1384]
[1753429487038,4.21699285,3617.3,3617.2,0.1384]
[1753429488636,8.56199285,3617.3,3617.2,0.1384]
[1753429489041,5.7975,3617.3,3617.2,0.1384]
[1753429489341,5.3499,3617.3,3617.2,0.1384]
[1753429489633,0.55,3617.3,3617.2,0.1384]
[1753429489940,1.0049,3617.3,3617.2,0.1384]
[1753429490399,0.55,3617.3,3617.2,0.1384]
[1753429490734,0.55,3617.5,3617.2,0.1384]
[1753429490897,4.895,3617.3,3617.2,0.1384]
[1753429491109,0.55,3617.2,3617.1,2.76564571]
[1753429491303,0.55,3617.3,3617.2,2.76456928]
[1753429491720,0.55,3617.5,3617.2,0.9427]
[1753429491920,0.55,3617.5,3617.3,0.9427]
[1753429492149,4.345,3617.9,3617.4,0.1384]
[1753429492322,4.345,3617.9,3617.8,0.1384]
[1753429492524,4.895,3617.9,3617.8,0.1384]
[1753429492730,0.55,3617.9,3617.8,0.1384]
[1753429493321,0.002,3618.2,3617.8,0.6074]
[1753429493517,0.002,3618.2,3617.8,0.1384]
[1753429493718,0.002,3618.2,3618.1,0.1384]
[1753429494060,3.3158052,3618.2,3618.1,0.1384]
[1753429494418,4.2066052,3618.2,3618.1,0.1384]
[1753429494831,7.2066052,3618.2,3618.1,0.1384]
[1753429495461,1.4428,3618.2,3618.1,0.1384]
[1753429495823,4.2066052,3618.2,3618.1,0.1384]
[1753429496147,0.552,3618.2,3618.1,0.1384]
[1753429497472,4.2066052,3618.2,3618.1,0.1384]
[1753429498167,0.552,3618.2,3618.1,0.1384]
[1753429499650,1.0069,3618.2,3618.1,0.1384]
[1753429499857,3.7707052,3618.2,3618.1,0.1384]
[1753429500032,4.2066052,3618.2,3618.1,0.1384]
[1753429500227,1.0069,3618.2,3618.1,0.1384]
[1753429500853,0.552,3618.2,3618.1,0.1384]
[1753429501462,3.7707052,3618.2,3618.1,0.1384]
[1753429501627,1.0069,3618.2,3618.1,0.1384]
[1753429502381,0.552,3618.2,3618.1,0.1384]
[1753429502866,4.2066052,3618.2,3618.1,0.1384]
[1753429503071,1.0069,3618.2,3618.1,0.1384]
[1753429503284,0.552,3618.2,3618.1,0.1384]
[1753429504981,1.0069,3618.2,3618.1,0.1384]
[1753429505159,1.4428,3618.2,3618.1,0.1384]
[1753429506075,4.2066052,3618.2,3618.1,0.1384]
[1753429506284,7.2066052,3618.2,3618.1,0.1384]
[1753429506461,8.0058052,3618.2,3618.1,0.1384]
[1753429506968,8.0058052,3618.2,3617.1,0.001]
[1753429506969,5.242,3618.2,3617.1,0.001]
[1753429507168,0.55,3617.2,3617.1,0.001]
[1753429507468,0.55,3617.2,3617.1,0.1394]
[1753429507890,0.55,3617.2,3617.1,3.84674571]
[1753429508059,0.55,3617.2,3617.1,0.1394]
[1753429508402,0.55,3617.2,3617.1,2.90404571]
[1753429508576,0.55,3617.2,3617.1,3.84674571]
[1753429508899,0.002,3619.0,3617.1,3.84674571]
[1753429508900,0.4549,3618.3,3617.1,1.0821]
[1753429509108,0.002,3618.6,3618.1,0.1384]
[1753429509109,4.344,3618.4,3618.1,0.1384]
[1753429509394,0.55,3618.3,3618.1,0.1384]
[1753429509766,0.55,3618.5,3618.1,2.90228159]
[1753429510392,0.002,3618.6,3618.1,3.84498159]
[1753429510764,0.552,3618.6,3618.1,3.84498159]
[1753429510964,0.002,3618.6,3618.1,3.84498159]
[1753429511405,0.552,3618.6,3618.1,3.84498159]
[1753429511706,0.552,3618.6,3618.1,8.18798159]
[1753429511707,0.002,3618.6,3618.1,8.18798159]
[1753429514214,0.002,3618.6,3618.1,11.18798159]
[1753429514372,0.002,3618.6,3618.5,2.76357606]
[1753429514706,0.002,3618.6,3618.5,7.10657606]
[1753429514952,0.04,3618.9,3618.8,5.76334696]
[1753429514953,1e-08,3618.9,3618.8,5.76334696]
[1753429515098,1e-08,3618.9,3618.8,5.90174696]
[1753429515298,1e-08,3619.0,3618.9,5.7632706]
[1753429515523,1e-08,3619.0,3618.9,11.26095659]
[1753429515868,1e-08,3619.3,3619.2,5.76304155]
[1753429516099,1e-08,3619.3,3619.2,5.90144155]
[1753429516303,1e-08,3619.3,3619.2,11.18714155]
[1753429517775,1e-08,3619.3,3619.2,6.84414155]
[1753429517972,1e-08,3619.3,3619.2,11.18614155]
[1753429518727,1e-08,3619.7,3619.6,2.76273621]
[1753429519022,0.04,3619.9,3619.8,2.76258356]
[1753429519377,0.04,3619.9,3619.8,3.83168356]
[1753429519711,0.04,3619.9,3619.8,6.83168356]
[1753429519911,0.04,3619.9,3619.8,2.90098356]
[1753429520430,0.04,3619.9,3619.8,8.17268356]
[1753429520769,0.04,3619.9,3619.8,11.17268356]
[1753429521308,1e-08,3620.2,3620.1,5.76235463]
[1753429521512,1e-08,3620.2,3620.1,10.10335463]
[1753429521677,1e-08,3620.2,3620.1,11.03405463]
[1753429522274,1e-08,3620.2,3620.1,6.69305463]
[1753429522504,1e-08,3620.2,3620.1,11.03405463]
[1753429524879,1e-08,3620.2,3620.1,2.76235463]
[1753429525195,1e-08,3620.2,3620.1,7.10235463]
[1753429525393,1e-08,3620.2,3619.6,0.4324]
[1753429525595,1e-08,3620.2,3620.1,2.76235463]
[1753429525926,1e-08,3620.2,3620.1,7.10235463]
[1753429526630,1.50880001,3620.2,3620.1,4.34]
[1753429526796,1.50880001,3620.2,3619.3,0.9307]
[1753429526797,1.50880001,3620.2,3618.9,7.39698599]
[1753429527125,0.55,3620.0,3619.3,2.76291484]
[1753429527344,0.55,3620.0,3619.2,2.76300808]
[1753429527345,0.55,3619.8,3619.2,2.76300808]
[1753429527483,0.55,3619.6,3619.4,2.7628725]
[1753429527680,1.271,3619.9,3619.3,7.10295601]
[1753429527883,0.4842,3619.6,3618.9,7.185]
[1753429528086,0.4842,3619.6,3619.0,7.10311895]
[1753429528341,0.55,3619.5,3619.0,7.10311895]
[1753429528487,0.55,3619.3,3619.0,4.34]
[1753429528803,0.4842,3619.2,3619.0,4.34]
[1753429528990,0.4842,3619.2,3619.0,7.10318704]
[1753429529424,1.0342,3619.2,3619.1,2.7631179]
[1753429529596,0.55,3619.2,3619.1,2.7631179]
[1753429529797,0.55,3619.2,3619.0,7.10319337]
[1753429530118,0.55,3619.2,3619.0,4.34]
[1753429530317,1.0342,3619.2,3619.0,7.10318837]
[1753429530524,0.55,3619.2,3618.9,2.7632706]
[1753429530831,0.55,3619.2,3618.8,2.76434262]
[1753429530832,2.2957,3619.1,3618.8,0.001]
[1753429531134,4.3428,3618.9,3618.8,0.001]
[1753429531431,7.1060706,3618.9,3618.8,0.1394]
[1753429531781,5.3016,3618.9,3618.8,0.1394]
[1753429531987,1.827,3618.9,3618.8,0.1394]
[1753429532432,2.3016,3618.9,3618.8,0.1394]
[1753429533026,5.0648706,3618.9,3618.8,0.1394]
[1753429533748,2.3016,3618.9,3618.8,0.1394]
[1753429534023,5.0648706,3618.9,3618.8,0.1394]
[1753429534324,8.0648706,3618.9,3618.8,0.1394]
[1753429535107,8.0648706,3618.9,3618.8,0.001]
[1753429535780,5.3016,3618.9,3618.8,0.001]
[1753429536004,1.827,3618.9,3618.8,0.1394]
[1753429536617,2.3016,3618.9,3618.8,0.1394]
[1753429538127,1.827,3618.9,3618.8,0.1394]
[1753429538332,2.3016,3618.9,3618.8,0.1394]
[1753429540033,8.0648706,3618.9,3618.8,0.1394]
[1753429540934,5.3016,3618.9,3618.8,0.1394]
[1753429541403,8.0648706,3618.9,3618.8,0.1394]
[1753429541908,5.3016,3618.9,3618.8,0.1394]
[1753429542130,8.0648706,3618.9,3618.8,0.1394]
[1753429543156,5.3016,3618.9,3618.8,0.1394]
[1753429543507,12.4058706,3618.9,3618.8,0.1394]
[1753429544766,12.4058706,3618.9,3618.8,0.0894]
[1753429545753,7.1463052,3618.2,3618.1,0.04]
[1753429545917,11.4873052,3618.2,3618.1,0.1784]
[1753429546123,11.4873052,3618.2,3618.1,0.04]
[1753429546124,12.4461052,3618.2,3618.1,0.04]
[1753429546737,5.3413,3618.2,3618.1,0.04]
[1753429546923,1.3825,3618.2,3618.1,0.04]
[1753429547146,4.1463052,3618.2,3618.1,0.1784]
[1753429547456,5.0905052,3618.2,3618.1,0.1784]
[1753429547759,8.0905052,3618.2,3618.1,0.04]
[1753429549425,4.861,3618.2,3618.1,0.04]
[1753429549630,11.9658052,3618.2,3618.1,0.04]
[1753429549863,12.4315052,3618.2,3618.1,0.041]
[1753429550959,12.5699052,3618.2,3618.1,0.041]
[1753429552285,12.5699052,3618.2,3618.0,1e-08]
[1753429552286,7.13678159,3618.1,3618.0,1e-08]
[1753429552483,8.08098159,3618.1,3618.0,1e-08]
[1753429554551,12.42298159,3618.1,3618.0,1e-08]
[1753429554751,12.42198159,3618.1,3618.0,1e-08]
[1753429555886,8.08098159,3618.1,3618.0,1e-08]
[1753429556397,12.42298159,3618.1,3618.0,1e-08]
[1753429556601,8.08098159,3618.1,3618.0,1e-08]
[1753429556918,12.42298159,3618.1,3618.0,1e-08]
[1753429558375,8.08098159,3618.1,3618.0,1e-08]
[1753429558594,12.42298159,3618.1,3618.0,1e-08]
[1753429559164,4.892,3618.1,3618.0,1e-08]
[1753429559370,10.65588159,3618.1,3618.0,0.13840001]
[1753429559673,11.13438159,3618.1,3618.0,0.13840001]
[1753429560614,7.892,3618.1,3618.0,0.13840001]
[1753429561017,0.758,3618.6,3618.0,0.13840001]
[1753429561216,2.76362966,3618.5,3618.0,1.04490001]
[1753429561427,4.341,3618.7,3618.1,3.67038124]
[1753429561578,0.55,3618.6,3618.4,0.1384]
[1753429561779,3.55,3618.6,3618.1,3.67038124]
[1753429562017,3.0,3618.6,3618.5,0.1384]
[1753429562332,3.55,3618.6,3618.5,0.1384]
[1753429562623,7.25769969,3618.6,3618.5,0.1384]
[1753429562922,0.55,3618.3,3618.0,1e-08]
[1753429563127,0.55,3618.3,3618.2,0.1384]
[1753429563474,0.55,3618.4,3618.2,0.1384]
[1753429563798,3.31372882,3618.3,3618.2,0.1384]
[1753429564112,1.0285,3618.3,3618.2,0.1384]
[1753429564492,3.79222882,3618.3,3618.2,0.1384]
[1753429564870,11.94372882,3618.3,3618.2,0.1384]
[1753429565068,3.55,3618.3,3618.2,0.1384]